Cogmind - Beta 13 @@@ ROGUE MODE // 2024.03.31 @ 21:18:33 Player: evergreen Result: Destroyed by as-34115 with Assembled Heavy Rifle Performance ------------- Evolutions (0) 0 Regions Visited (2) 400 Robots Destroyed (9) 45 Value Destroyed (171) 171 Prototype IDs (0) 0 Alien Tech Used (0) 0 Bonus (-18) -18 TOTAL SCORE: 598 Bonus ------- Friendly Fire -18 Cogmind --------- Core Integrity 0/250 Matter 138/300 Energy 99/100 System Corruption 0% Temperature Cool (0) Movement Core (50) Location -10/Mines Parts ------- > --- POWER (1) -------- (None) > --- PROPULSION (2) --- (None) > --- UTILITY (2) ------ (None) > --- WEAPON (2) ------- (None) > --- INVENTORY (5) ---- Tractor Beam Peak State ------------ > --- POWER ------------ Light Ion Engine > --- PROPULSION ------- Wheel Wheel > --- UTILITY ---------- Light Armor Plating Tractor Beam > --- WEAPON ----------- EM Pulse Gun Grenade Launcher > --- INVENTORY -------- Heat Sink EM Pulse Gun [Rating: 7] Favorites ----------- Power Light Ion Engine Engine Light Ion Engine Propulsion Wheel Leg Aluminum Leg Wheel Wheel Utility Light Armor Plating Device Sensor Array Storage Medium Matter Pod Protection Light Armor Plating Weapon Grenade Launcher Energy Gun EM Pulse Gun Energy Cannon Beam Cannon Launcher Grenade Launcher Build | -11 -10 -10 ------- Run | Yrd Mat Min Slots Evolved . | . . . Power . | . . . Propulsion . | . . . Utility . | . . . Weapon . | . . . Parts Attached 20 | 8 11 1 Power 6 | 1 4 1 Engine 6 | 1 4 1 Core . | . . . Reactor . | . . . Propulsion 5 | 5 . . Treads . | . . . Leg 2 | 2 . . Wheel 3 | 3 . . Hover . | . . . Flight . | . . . Utility 5 | . 5 . Device 2 | . 2 . Storage 1 | . 1 . Processor . | . . . Hackware . | . . . Protection 2 | . 2 . Artifact . | . . . Weapon 4 | 2 2 . Energy Gun 2 | 2 . . Energy Cannon 1 | . 1 . Ballistic Gun . | . . . Ballistic Cannon . | . . . Launcher 1 | . 1 . Special Weapon . | . . . Impact Weapon . | . . . Slashing Weapon . | . . . Piercing Weapon . | . . . Special Melee Weapon . | . . . Unidentified Prototypes . | . . . Parts Lost 8 | . . 8 Power 2 | . . 2 Propulsion 2 | . . 2 Utility 2 | . . 2 Weapon 2 | . . 2 Highest Loss Streak 7 | . . 7 To Critical Strikes . | . . . Average Slot Usage (%) 76 | . 95 60 Engine 14 | . 14 14 Wheel 20 | . 28 14 Device 9 | . 11 7 Protection 9 | . 12 7 Energy Gun 2 | . 5 . Energy Cannon 8 | . 9 8 Launcher 10 | . 13 7 Naked Turns 6 | . . 6 Heaviest Build 13 | 7 13 13 Greatest Support 20 | 20 20 20 Greatest Overweight (x) 1 | . . 1 Average Overweight (x) . | . . . Largest Inventory Capacity 5 | 5 5 5 Average Capacity 5 | 5 5 5 Most Carried 5 | 2 5 2 Average Carried 1 | . 2 1 Final Capacity 5 | 5 5 5 Final Carried 2 | 1 2 1 Class Distribution -------------------- 100% | Mutant Dominant Class ---------------- Mutant | -10/Materials Mutant | -10/Mines Resources | -11 -10 -10 ----------- Run | Yrd Mat Min Matter Collected 318 | 280 38 . Remotely . | . . . Salvage Created 185 | 50 95 40 Parts 14 | 2 9 3 Haulers Intercepted . | . . . Recyclers Shooed . | . . . Parts Field Recycled . | . . . Retrieved Matter . | . . . Parts Self-Destructed . | . . . Prevented . | . . . Kills | -11 -10 -10 ------- Run | Yrd Mat Min Combat Hostiles Destroyed 9 | 1 2 6 Guns 1 | 1 . . AOE 8 | . 2 6 Classes Destroyed 5 | 1 2 2 Builder 2 | . 2 . Watcher 1 | . 1 . Swarmer 3 | . . 3 Grunt 3 | 1 2 . Assembled 3 | . . 3 Best Kill Streak 5 | 1 5 3 Combat Bots Only 3 | 1 2 3 Max Kills in Single Turn 3 | 1 2 3 Gunslinging . | . . . Exploded 3 | . 1 3 Melee . | . . . Uniques/NPCs Destroyed . | . . . Combat | -11 -10 -10 -------- Run | Yrd Mat Min Hostile Shots Fired 47 | 4 2 41 Missed 15 | 2 1 12 Damage Taken 757 | 24 17 716 Core 258 | . . 258 Absorbed by Shields . | . . . Core Remaining (%) 100 | 100 . . Volleys Fired 16 | 3 3 10 Largest 2 | 2 2 2 Hottest 90 | 80 90 90 Shots Fired 31 | 6 6 19 Gun 6 | 6 . . Cannon 13 | . 3 10 Launcher 12 | . 3 9 Special . | . . . Kinetic . | . . . Thermal 13 | . 3 10 Explosive 12 | . 3 9 Electromagnetic 6 | 6 . . Robot Hit Streak 4 | 3 4 2 Robot Miss Streak 2 | . 2 1 Penetration Max . | . . . Secondary Targets . | . . . Shots Hit Robots 12 | 3 4 5 Core Hits 32 | 2 8 22 Critical Kills . | . . . Critical Parts Destroyed . | . . . Critical Strikes . | . . . Melee Attacks . | . . . Impact . | . . . Slashing . | . . . Piercing . | . . . Sneak Attacks . | . . . Combat Hostiles . | . . . Follow-up Attacks . | . . . Damage Inflicted 921 | 37 234 650 Guns 37 | 37 . . Cannons 88 | . 35 53 Explosions 796 | . 199 597 Melee . | . . . Ramming . | . . . Kinetic . | . . . Thermal 88 | . 35 53 Explosive 796 | . 199 597 Electromagnetic 37 | 37 . . Impact . | . . . Slashing . | . . . Piercing . | . . . Highest Corruption . | . . . Average Corruption . | . . . Corruption Purged . | . . . Corruption Blocked . | . . . Overload Shots . | . . . Overflow Damage 22 | . 14 8 Projectiles . | . . . Explosions 22 | . 14 8 Melee . | . . . Knockbacks . | . . . Impact . | . . . Kinetic . | . . . Secondary . | . . . Self-Inflicted Damage 43 | . . 43 Shots 2 | . . 2 Rammed . | . . . Targets Rammed . | . . . Kicked . | . . . Crushed . | . . . Highest Temperature 195 | 66 126 195 Average Temperature 74 | 34 64 88 Received Heat Transfer 30 | 12 9 9 Siege Activations . | . . . Robots Corrupted . | . . . Combat Hostiles . | . . . Parts Fried . | . . . Impact Corruptions . | . . . Robots Melted . | . . . Combat Hostiles . | . . . Parts Melted 1 | . 1 . Heat Transferred 185 | . 74 111 Parts Sabotaged . | . . . Parts Stolen . | . . . Parts Stripped . | . . . Power Chain Reactions . | . . . Alert | -11 -10 -10 ------- Run | Yrd Mat Min Peak Influence 150 | 20 96 150 Initial 37 | . 13 37 Average 63 | 4 65 90 Maximum Alert Level . | . . . Low Security (%) 100 | 100 100 100 Level 1 . | . . . Level 2 . | . . . Level 3 . | . . . Level 4 . | . . . Level 5 . | . . . High Security . | . . . Max Security . | . . . Squads Dispatched . | . . . Investigation . | . . . Extermination . | . . . Reinforcement . | . . . Assault . | . . . Garrison . | . . . Intercept . | . . . Searches Triggered . | . . . Construction Impeded . | . . . Haulers Reinforced . | . . . Active Scanning Responses . | . . . Cargo Convoy Interrupts . | . . . Stealth | -11 -10 -10 --------- Run | Yrd Mat Min Distress Signals 1 | . 1 . Communications Jammed . | . . . Distress Signals . | . . . Times Spotted 27 | 1 3 23 Peak Tracking Total 18 | 1 3 18 Tactical Retreats 2 | . . 2 Traps | -11 -10 -10 ------- Run | Yrd Mat Min Traps Triggered . | . . . Indirectly . | . . . Trap Hack Attempts . | . . . Triggered . | . . . Disarmed . | . . . Reprogrammed . | . . . Reused . | . . . Traps Extracted . | . . . Installed . | . . . Triggered . | . . . Machines | -11 -10 -10 ---------- Run | Yrd Mat Min Machines Disabled . | . . . Max in Single Turn . | . . . Machines Repaired . | . . . Machines Dismantled . | . . . Machines Sabotaged . | . . . Overloaded Fab Kills . | . . . Hacking | -11 -10 -10 --------- Run | Yrd Mat Min Machines Accessed . | . . . Terminals . | . . . Fabricators . | . . . Repair Stations . | . . . Recycling Units . | . . . Scanalyzers . | . . . Garrison Access . | . . . Total Hacks . | . . . Successful . | . . . Failed . | . . . Catastrophic . | . . . Database Lockouts . | . . . Manual . | . . . Terminals . | . . . Fabricators . | . . . Repair Stations . | . . . Recycling Units . | . . . Scanalyzers . | . . . Garrison Access . | . . . Terminal Hacks . | . . . Fabricator Hacks . | . . . Repair Station Hacks . | . . . Recycling Unit Hacks . | . . . Scanalyzer . | . . . Garrison Access Hacks . | . . . Unauthorized Hacks . | . . . Terminals . | . . . Fabricators . | . . . Repair Stations . | . . . Recycling Units . | . . . Scanalyzers . | . . . Garrison Access . | . . . Data Cores Recovered . | . . . Used . | . . . Hacking Detections . | . . . Full Trace Events . | . . . Feedback Events . | . . . Feedback Blocked . | . . . Robot Schematics Acquired . | . . . Robots Built . | . . . Authchips . | . . . Time . | . . . Total Robot Build Rating . | . . . Part Schematics Acquired . | . . . Parts Built . | . . . Authchips . | . . . Time . | . . . Total Part Build Rating . | . . . Parts Repaired . | . . . Time . | . . . Parts Recycled . | . . . Recycled Matter . | . . . Retrieved Matter . | . . . Retrieved Components . | . . . Parts Scanalyzed . | . . . Part Schematics Acquired . | . . . Parts Damaged . | . . . Bothacking | -11 -10 -10 ------------ Run | Yrd Mat Min Used RIF Installer . | . . . Robots Hacked . | . . . Non-combat . | . . . Combat . | . . . Robot Hacks Applied . | . . . Relay Couplers Released . | . . . Fabnet Peak Effective % . | . . . Robots Rewired . | . . . Allies Hacked . | . . . Hacks Repelled . | . . . Allies | -11 -10 -10 -------- Run | Yrd Mat Min Total Allies 2 | . . 2 Largest Group 2 | . . 2 Highest-Rated Group 49 | . . 49 Highest-Rated Ally 31 | . . 31 Total Orders . | . . . Ally Attacks 1 | . . 1 Total Damage 21 | . . 21 Kills . | . . . Allies Corrupted . | . . . Allies Melted . | . . . Intel | -11 -10 -10 ------- Run | Yrd Mat Min Robot Analysis Total . | . . . Derelict Logs Recovered 1 | . . 1 Drone Launches . | . . . Drone Recoveries . | . . . Exploration | -11 -10 -10 ------------- Run | Yrd Mat Min Turns Passed 447 | 93 164 190 Spaces Moved 425 | 86 158 181 Core 112 | 23 . 89 Treads . | . . . Legs 9 | 9 . . Wheels 304 | 54 158 92 Hover . | . . . Flight . | . . . Fastest Speed 50 | 50 80 50 Average Speed 82 | 76 80 87 Slowest Speed 120 | 120 80 100 Overloaded Moves . | . . . Propulsion Burnouts . | . . . Robots Hopped . | . . . Cave-ins Triggered . | . . . Exploration Rate (%) 24 | 9 24 40 Regions Visited 2 Branch Regions 1 Pre-discovered Areas . | . . . Known Exits Taken . | . . . Unknown Exits Taken 2 | 1 1 . Scrap Searched . | . . . Spaces Dug 8 | . . 8 Terrain Destroyed 80 | . 16 64 Melee . | . . . Projectile . | . . . AOE 80 | . 16 64 Terrain Rammed . | . . . Walls Destroyed . | . . . Machines Disabled . | . . . Actions | -11 -10 -10 --------- Run | Yrd Mat Min Total 487 | 106 188 193 Wait 1 | . . 1 Move 423 | 85 157 181 Hop . | . . . Pick Up 18 | 8 10 . Fast Attach . | . . . Attach 8 | 5 2 1 Detach . | . . . Swap 12 | 3 9 . Drop 9 | 2 7 . Fire 16 | 3 3 10 Melee . | . . . Ram . | . . . Kick . | . . . Crush . | . . . Escape Stasis . | . . . Rewire . | . . . Trap . | . . . Miscellaneous . | . . . Route ------- -11/Scrapyard -10/Materials -10/Mines (discovered 1 exit: [*Mat]) History --------- Turn | Location | Event 2 | -11/Scrapyard | Met Revision 17 64 | -11/Scrapyard | Discovered new exit (range 8) 94 | -11/Scrapyard | Entered Materials 181 | -10/Materials | Discovered new exit (range 6) 258 | -10/Materials | Entered Mines 283 | -10/Mines | Learned Materials trap positions 317 | -10/Mines | Build established: Mutant 343 | -10/Mines | Assembled infested the area 345 | -10/Mines | Found a hidden stash of uninstalled traps 348 | -10/Mines | Assisted by a Guerilla fighting off Assembled 353 | -10/Mines | Discovered new exit (range 15) 361 | -10/Mines | Core integrity fell below 50% 369 | -10/Mines | Core integrity fell below 20% 391 | -10/Mines | Lost 7 parts (1p2n2u2w) 448 | -10/Mines | Destroyed by as-34115 with Assembled Heavy Rifle Last Messages --------------- YN-HKL(h) destroyed. U-05 Engineer builds a Wall. Grenade Launcher destroyed. Beam Cannon destroyed. U-05 Engineer lays Concrete. Lgt. Ion Engine destroyed. D-53 Grenadier destroyed. Overweight warning: You are carrying more than your current propulsion can efficiently support, which slows movement; see status page ('s') or the top of the parts list for the specific mass vs. support values. U-05 Engineer builds a Wall. D-53 Grenadier destroyed. R-06 Scavenger collects Beamcaster. K-01 Serf collects debris. R-06 Scavenger suffers critical hit (Destroy). [Achievement: Slippery One] Ion Engine destroyed. [Achievement: First Step to Greatness] Map ----- +----------------------------------------------------+ | | | | | | | | | | | ?????????????????????????????????????????????????? | | ?????????????????????????????????????????????????? | | ?????????????????????????????????????????????????? | | ??????????###############????????????????????????? | | ??????????# ##???????????????????????? | | ??????????# ##??????????????????????? | | ??????????# ####### #####??????????????????? | | ?????????## ## #### #??????????????????? | | ????????## #?## #??????????????????? | | ???????## #??### #??????????????????? | | ??????## #????##a ##??????????????????? | | ??????# #?????# #???????????????????? | | ??????# ### ##???### ##??????????????????? | | #?????# ##?# #???## ##?????????????????? | | #?????## #??# #???# #?????????????????? | | #??????# #### #???# #?????????????????? | | #??????# #???## ##?????????????????? | | #??????## ##### #????# ###??????????????????? | | #???????###????# #????# ##????????????????????? | | #??????????????# #????## ##?????????????????????? | | ######???????### #?????# @#??????????????????????? | | #???????# #?????# #??????????????????????? | | #### #???????# ###?????# #??????????????????????? | | ???# #???????# #???????# #??????????????????????? | | ???# #???????# #??####?# #??????????????????????? | | ???# ######### ### ### #???????????????????? | | ???# ## #??????????????????? | | ???# #??????????????????? | | ???########### """ ???????????????????? | | ?????????????## ## """ ??????????????????????? | | ??????????????# ##?? """ #?????????????????????? | | ??????????????# #???? ##?????????????????????? | | ??????????????# #????? *#??????????????????????? | | ??????????????# #?????? %##?????????????????????? | | ??????????????# ###????# = ??????????????????????? | | ??????????????# #????# %#??????????????????????? | | ??????????????### #????# #??????????????????????? | | ????????????????# #???## ###????????????????????? | | ?????""?????????# #??### ##???????????????????? | | ?????""" #### #### ##########??????????? | | ???# #??????????? | | ?????# ####### %#?????????? | | ?????# ????????????# % % #????????? | | ???????????????????# %% ????????? | | ???????????????????# # # % ?????????? | +----------------------------------------------------+ Best States ------------- Heat Dissipation 25 Energy Generation 10 Energy Capacity 250 Matter Stores 300 Matter Capacity 300 Sight Range 16 Robot Scan Range 14 Terrain Scan Density 10 Armor Coverage 150 Evasion (%) 45 Item Schematics ----------------- None Robot Schematics ------------------ None Fabricated ------------ Nothing Alien Tech Used ----------------- None Achievements -------------- First Step to Greatness Slippery One Challenges ------------ None Game ------ Seed CooledRocketDriver Manual? 0 Play Time 00:31:27 Cumulative 0.4 hours Start 2024.03.31 @ 17:52:18 End 2024.03.31 @ 21:18:33 Sessions 3 Manual Loads 0 Difficulty Rogue Special Mode None Game No. 1 Rogue 1 Adventurer 0 Explorer 0 Win Type - Total 0 Types 0/0/0/0/0/0/0/0/0 Lore% 0 Gallery% 1 Achievement% 0 Wizard Run 0 Options --------- Layout 1 ASCII 0 Keyboard 0 Movement Arrows Keybinds 0 Fullscreen 1 Font 32/SmallcapsGlow Map View 50x35 Zoom Use 0% Tactical HUD 0 Map Filters NONE Filters NONE Steam 1 RUN: b0c92b6c-1061-46a1-a49f-7c95771d8f62